fUSD/lending_fUSD_20260108
["ID","MTS","AMOUNT","RATE_DAILY","PERIOD"]
[400821005,1767838242349,-960.0,0.00015722,2]
[400821007,1767838242358,-500.0,0.00015722,2]
[400821009,1767838242367,-935.0,0.00015722,2]
[400821011,1767838242376,-641.0,0.00015722,2]
[400821013,1767838242385,-500.0,0.00015722,2]
[400821015,1767838242394,-254.70701265,0.00015731,2]
[400821017,1767838242403,-960.0,0.00015777,2]
[400821019,1767838242413,-500.0,0.00015777,2]
[400821021,1767838242422,-935.0,0.00015777,2]
[400821023,1767838242432,-641.0,0.00015777,2]
[400821025,1767838242440,-271.36858327,0.00015777,2]
[400821027,1767838242449,-960.0,0.00015832,2]
[400821029,1767838242458,-500.0,0.00015832,2]
[400821031,1767838242468,-935.0,0.00015832,2]
[400821033,1767838242476,-641.0,0.00015832,2]
[400821035,1767838242485,-166.66,0.00015876,2]
[400821037,1767838242494,-960.0,0.00015887,2]
[400821039,1767838242504,-500.0,0.00015887,2]
[400821041,1767838242513,-935.0,0.00015887,2]
[400821043,1767838242524,-641.0,0.00015887,2]
[400821045,1767838242533,-1362.12,0.00015895,2]
[400821047,1767838242542,-537.72,0.000159,2]
[400821049,1767838242551,-836.42,0.000159,2]
[400821051,1767838242562,-857.96,0.000159,2]
[400821053,1767838242572,-366.61,0.000159,2]
[400821055,1767838242581,-1595.42770784,0.000159,2]
[400821057,1767838242591,-1595.42770779,0.000159,2]
[400821059,1767838242601,-466.04,0.00015932,2]
[400821061,1767838242611,-960.0,0.00015941,2]
[400821063,1767838242620,-186.06247596,0.00015941,2]
[400821065,1767838242629,-935.0,0.00015941,2]
[400821067,1767838242638,-641.0,0.00015941,2]
[400821069,1767838242647,-960.0,0.00015996,2]
[400821071,1767838242656,-935.0,0.00015996,2]
[400821073,1767838242665,-641.0,0.00015996,2]
[400821075,1767838242674,-249.533558,0.00016,2]
[400821077,1767838242684,-17133.44498831,0.00016008,2]
[400821079,1767838242693,-16967.26690224,0.00016008,2]
[400821081,1767838242703,-1002.29010168,0.00016019,2]
[400821083,1767838242711,-1000.0,0.00016019,2]
[400821085,1767838242721,-960.0,0.00016051,2]
[400821087,1767838242730,-935.0,0.00016051,2]
[400821089,1767838242739,-641.0,0.00016051,2]
[400821091,1767838242749,-960.0,0.00016106,2]
[400821093,1767838242758,-935.0,0.00016106,2]
[400821095,1767838242767,-641.0,0.00016106,2]
[400821097,1767838242776,-9999.99,0.00016116,2]
[400821099,1767838242786,-960.0,0.0001616,2]
[400821101,1767838242795,-935.0,0.0001616,2]
[400821103,1767838242805,-641.0,0.0001616,2]
[400821105,1767838242815,-1362.12,0.00016168,2]
[400821107,1767838242824,-322.81176918,0.00016168,2]
[400821109,1767838242833,-1500.0,0.00016168,2]
[400821111,1767838242842,-950.84693016,0.00016168,2]
[400821113,1767838242852,-530.62564826,0.00016168,2]
[400821114,1767838242861,-1500.0,0.00016168,2]
[400821117,1767838242870,-1500.0,0.00016168,2]
[400821119,1767838242880,-1500.0,0.00016168,2]
[400821120,1767838242889,-1503.25434979,0.00016168,2]
[400821122,1767838242899,-1500.0,0.00016168,2]
[400821124,1767838242908,-1500.0,0.00016168,2]
[400821126,1767838242917,-1500.0,0.00016168,2]
[400821128,1767838242926,-1500.0,0.00016168,2]
[400821130,1767838242935,-1001.21839087,0.00016168,2]
[400821132,1767838242944,-1129.4325829,0.00016168,2]
[400821134,1767838242953,-150.0,0.000162,2]
[400821136,1767838242962,-166.66,0.00016203,2]
[400821139,1767838242972,-975.41648618,0.00016215,2]
[400821141,1767838242981,-942.20817409,0.00016215,2]
[400821143,1767838242990,-652.69318482,0.00016215,2]
[400821144,1767838242999,-150.0,0.00016267,2]
[400821145,1767838243007,-150.0,0.00016333,2]
[400821146,1767838243016,-150.0,0.000164,2]
[400821147,1767838243026,-162.0,0.000164,2]
[400821148,1767838243035,-500.0,0.00016437,2]
[400821150,1767838243044,-500.0,0.00016437,2]
[400821152,1767838243053,-500.0,0.00016438,2]
[400821154,1767838243063,-19419.51,0.00016438,2]
[400821156,1767838243072,-800.0,0.00016438,2]
[400821158,1767838243081,-1362.12,0.00016442,2]
[400821160,1767838243090,-150.0,0.00016467,2]
[400821162,1767838243099,-216.14649343,0.00016473,2]
[400821164,1767838243109,-11888.0,0.00016481,2]
[400821166,1767838243119,-17133.44498831,0.00016481,2]
[400821168,1767838243128,-16967.26690224,0.00016481,2]
[400821170,1767838243137,-500.0,0.00016493,2]
[400821172,1767838243146,-587.0,0.000165,2]
[400821174,1767838243156,-451.90263959,0.00016513,2]
[400821176,1767838243165,-500.0,0.00016513,2]
[400821178,1767838243175,-500.0,0.00016513,2]
[400821181,1767838243185,-166.66,0.00016531,2]
[400821183,1767838243194,-150.0,0.00016533,2]
[400821184,1767838243203,-500.0,0.00016548,2]
[400821186,1767838243213,-322.28994131,0.00016581,2]
[400821188,1767838243223,-477.11,0.00016582,2]
[400821191,1767838243232,-150.0,0.000166,2]
[400821192,1767838243241,-195.08159117,0.00016602,2]
[400821195,1767838243251,-1000.0,0.00016608,2]
[400821197,1767838243260,-984.08,0.00016617,2]
[400821199,1767838243269,-322.6107,0.00016621,2]
[400821201,1767838243278,-1500.0,0.00016621,2]
[400821202,1767838243287,-1500.0,0.00016621,2]
[400821204,1767838243296,-1500.0,0.00016621,2]
[400821206,1767838243306,-1500.0,0.00016621,2]
[400821208,1767838243315,-1500.0,0.00016621,2]
[400821210,1767838243324,-500.0,0.00016621,2]
[400821212,1767838243333,-500.0,0.00016621,2]
[400821214,1767838243342,-1500.0,0.00016621,2]
[400821217,1767838243352,-500.0,0.00016621,2]
[400821219,1767838243360,-500.0,0.00016621,2]
[400821221,1767838243370,-1500.0,0.00016621,2]
[400821223,1767838243378,-500.0,0.00016621,2]
[400821225,1767838243387,-1500.0,0.00016621,2]
[400821227,1767838243397,-500.0,0.00016621,2]
[400821229,1767838243407,-574.12855637,0.00016621,2]
[400821231,1767838243416,-500.0,0.00016621,2]
[400821233,1767838243425,-500.0,0.00016621,2]
[400821235,1767838243434,-1500.0,0.00016621,2]
[400821237,1767838243443,-500.0,0.00016621,2]
[400821238,1767838243452,-500.0,0.00016621,2]
[400821241,1767838243461,-1500.0,0.00016621,2]
[400821243,1767838243471,-500.0,0.00016621,2]
[400821245,1767838243481,-1500.0,0.00016621,2]
[400821247,1767838243490,-500.0,0.00016621,2]
[400821249,1767838243499,-500.0,0.00016621,2]
[400821251,1767838243508,-500.0,0.00016621,2]
[400821253,1767838243518,-500.0,0.00016621,2]
[400821255,1767838243529,-500.0,0.00016621,2]
[400821257,1767838243538,-500.0,0.00016621,2]
[400821259,1767838243548,-500.0,0.00016621,2]
[400821261,1767838243557,-500.0,0.00016621,2]
[400821262,1767838243567,-500.0,0.00016621,2]
[400821264,1767838243576,-500.0,0.00016621,2]
[400821266,1767838243585,-500.0,0.00016621,2]
[400821269,1767838243596,-578.20924308,0.00016621,2]
[400821271,1767838243605,-500.0,0.00016621,2]
[400821273,1767838243615,-500.0,0.00016621,2]
[400821275,1767838243625,-500.0,0.00016621,2]
[400821277,1767838243635,-500.0,0.00016621,2]
[400821279,1767838243643,-500.0,0.00016621,2]
[400821281,1767838243653,-500.0,0.00016621,2]
[400821283,1767838243662,-500.0,0.00016621,2]
[400821285,1767838243671,-500.0,0.00016621,2]
[400821287,1767838243680,-500.0,0.00016621,2]
[400821289,1767838243689,-612.00977394,0.00016621,2]
[400821290,1767838243698,-500.0,0.00016621,2]
[400821293,1767838243707,-500.0,0.00016621,2]
[400821294,1767838243716,-151.0,0.00016621,2]
[400821297,1767838243726,-2000.0,0.00016621,2]
[400821298,1767838243736,-2000.0,0.00016621,2]
[400821301,1767838243745,-151.66241854,0.00016621,2]
[400821303,1767838243755,-151.0,0.00016621,2]
[400821305,1767838243764,-2000.0,0.00016621,2]
[400821307,1767838243773,-2000.0,0.00016621,2]
[400821310,1767838243791,-2000.0,0.00016621,2]
[400821312,1767838243804,-2000.0,0.00016621,2]
[400821314,1767838243814,-2000.0,0.00016621,2]
[400821316,1767838243825,-2000.0,0.00016621,2]
[400821318,1767838243837,-2000.0,0.00016621,2]
[400821320,1767838243847,-620.0,0.00016621,2]
[400821322,1767838243857,-2000.0,0.00016621,2]
[400821324,1767838243866,-2000.0,0.00016621,2]
[400821326,1767838243876,-500.0,0.00016621,2]
[400821328,1767838243886,-500.0,0.00016621,2]
[400821331,1767838243896,-419.1378307,0.00016621,2]
[400821333,1767838243905,-250.0,0.00016621,2]
[400821335,1767838243915,-270.73180541,0.00016621,2]
[400821337,1767838243924,-2351.0,0.00016625,2]
[400821339,1767838243934,-500.0,0.00016643,2]
[400821341,1767838243944,-500.17178809,0.00016643,2]
[400821343,1767838243953,-500.0,0.00016643,2]
[400821345,1767838243963,-505.59733133,0.00016643,2]
[400821347,1767838243972,-633.01352033,0.00016643,2]
[400821349,1767838243981,-338.62982115,0.00016643,2]
[400821351,1767838243991,-501.18870733,0.00016643,2]
[400821353,1767838244000,-150.0,0.00016667,2]
[400821355,1767838244010,-61857.1,0.00016679,2]
[400821357,1767838244020,-200.0,0.00016686,2]
[400821359,1767838244029,-157.19112422,0.00016689,2]
[400821362,1767838244040,-165.16,0.00016712,2]
[400821364,1767838244050,-1362.12,0.00016716,2]
[400821366,1767838244060,-1502.55797273,0.00016716,2]
[400821368,1767838244069,-2000.0,0.00016716,2]
[400821370,1767838244078,-2002.28599053,0.00016716,2]
[400821372,1767838244088,-2000.0,0.00016716,2]
[400821374,1767838244097,-1178.48439295,0.00016716,2]
[400821376,1767838244107,-2000.0,0.00016716,2]
[400821378,1767838244117,-2003.11520818,0.00016716,2]
[400821380,1767838244127,-2000.0,0.00016716,2]
[400821382,1767838244137,-162.0,0.0001672,2]
[400821384,1767838244146,-162.0,0.0001672,2]
[400821386,1767838244156,-833.0,0.0001672,2]
[400821388,1767838244165,-300.0,0.00016731,2]
[400821390,1767838244175,-150.0,0.00016733,2]
[400821392,1767838244184,-300.0,0.00016739,2]
[400821394,1767838244193,-285.16,0.00016765,2]
[400821396,1767838244203,-466.04,0.0001677,2]
[400821399,1767838244213,-150.0,0.000168,2]
[400821401,1767838244223,-166.66,0.00016858,2]
[400821403,1767838244232,-150.0,0.00016867,2]
[400821405,1767838244243,-300.0,0.00016884,2]
[400821407,1767838244253,-637.69822594,0.00016895,2]
[400821409,1767838244262,-150.0,0.00016933,2]
[400821411,1767838244271,-150.0,0.00016943,2]
[400821413,1767838244281,-17133.44498831,0.00016954,2]
[400821415,1767838244290,-16967.26690224,0.00016954,2]
[400821417,1767838244300,-500.0,0.00016986,2]
[400821419,1767838244310,-500.0,0.00016986,2]
[400821421,1767838244320,-53044.13,0.00016986,2]
[400821423,1767838244330,-1362.12,0.0001699,2]
[400821425,1767838244340,-304.30680198,0.00016995,2]
[400821427,1767838244349,-150.0,0.00017,2]
[400821430,1767838244359,-300.0,0.00017006,2]
[400821432,1767838244368,-300.0,0.00017015,2]
[400821434,1767838244378,-500.0,0.0001702,2]
[400821436,1767838244387,-300.0,0.00017036,2]
[400821438,1767838244397,-1317.79,0.00017041,2]
[400821440,1767838244408,-373.0,0.00017041,2]
[400821442,1767838244418,-477.11,0.00017058,2]
[400821444,1767838244427,-150.0,0.00017067,2]
[400821446,1767838244437,-300.0,0.0001709,2]
[400821448,1767838244447,-300.0,0.00017104,2]
[400821450,1767838244457,-150.0,0.00017113,2]
[400821452,1767838244466,-300.0,0.00017119,2]
[400821454,1767838244476,-250.0,0.00017126,2]
[400821456,1767838244486,-300.0,0.00017127,2]
[400821458,1767838244495,-150.0,0.00017133,2]
[400821461,1767838244505,-300.0,0.00017149,2]
[400821463,1767838244515,-300.0,0.00017152,2]
[400821465,1767838244530,-300.0,0.00017163,2]
[400821467,1767838244539,-595.37131296,0.00017169,2]
[400821469,1767838244549,-152.48765181,0.00017169,2]
[400821471,1767838244560,-157.22325972,0.00017169,2]
[400821473,1767838244570,-300.0,0.00017176,2]
[400821475,1767838244579,-300.72,0.00017178,2]
[400821477,1767838244590,-300.0,0.00017182,2]
[400821479,1767838244600,-166.66,0.00017185,2]
[400821481,1767838244610,-1000.0,0.00017191,2]
[400821483,1767838244619,-222.95362607,0.00017191,2]
[400821485,1767838244628,-300.0,0.00017196,2]
[400821487,1767838244639,-150.0,0.000172,2]
[400821489,1767838244649,-300.0,0.00017205,2]
[400821491,1767838244659,-156.0,0.00017205,2]
[400821493,1767838244669,-300.0,0.00017225,2]
[400821496,1767838244679,-150.0,0.00017226,2]
[400821498,1767838244689,-150.0,0.0001724,2]
[400821500,1767838244698,-300.0,0.00017244,2]
[400821502,1767838244707,-150.0,0.00017246,2]
[400821504,1767838244718,-833.4,0.00017248,2]
[400821506,1767838244727,-300.0,0.00017251,2]
[400821508,1767838244736,-300.0,0.00017258,2]
[400821510,1767838244746,-150.0,0.00017261,2]
[400821512,1767838244756,-1362.12,0.00017264,2]
[400821514,1767838244765,-2004.06568584,0.00017264,2]
[400821516,1767838244774,-2500.0,0.00017264,2]
[400821518,1767838244784,-2500.0,0.00017264,2]
[400821520,1767838244794,-2500.0,0.00017264,2]
[400821522,1767838244808,-150.0,0.00017267,2]
[400821525,1767838244819,-157.19112422,0.00017285,2]
[400821527,1767838244828,-300.0,0.00017292,2]
[400821529,1767838244837,-300.0,0.00017305,2]
[400821531,1767838244847,-150.0,0.00017305,2]
[400821533,1767838244857,-300.0,0.0001731,2]
[400821535,1767838244867,-833.4,0.00017316,2]
[400821537,1767838244877,-150.0,0.00017333,2]
[400821539,1767838244886,-300.0,0.00017334,2]
[400821541,1767838244895,-150.0,0.00017342,2]
[400821543,1767838244905,-300.0,0.00017345,2]
[400821545,1767838244914,-300.0,0.00017358,2]
[400821547,1767838244924,-162.0,0.0001736,2]
[400821549,1767838244933,-833.0,0.0001736,2]
[400821551,1767838244943,-300.0,0.00017374,2]
[400821553,1767838244952,-150.0,0.00017381,2]
[400821555,1767838244962,-300.0,0.00017382,2]
[400821557,1767838244971,-833.4,0.00017385,2]
[400821559,1767838244980,-300.0,0.00017391,2]
[400821561,1767838244990,-150.0,0.00017391,2]
[400821564,1767838245000,-1272.25514626,0.00017392,2]
[400821566,1767838245009,-1690.23374302,0.00017394,2]
[400821568,1767838245019,-637.69822592,0.00017398,2]
[400821570,1767838245029,-150.0,0.000174,2]
[400821572,1767838245038,-1000.0,0.000174,2]
[400821574,1767838245047,-150.0,0.00017403,2]
[400821576,1767838245057,-300.0,0.00017425,2]
[400821578,1767838245067,-17133.44498831,0.00017427,2]
[400821580,1767838245077,-16967.26690224,0.00017427,2]
[400821582,1767838245086,-300.0,0.00017432,2]
[400821584,1767838245095,-300.0,0.00017439,2]
[400821586,1767838245105,-300.0,0.00017441,2]
[400821588,1767838245114,-300.0,0.00017442,2]
[400821590,1767838245124,-300.0,0.00017443,2]
[400821592,1767838245134,-300.0,0.00017447,2]
[400821594,1767838245144,-300.0,0.00017447,2]
[400821597,1767838245154,-150.0,0.00017449,2]
[400821599,1767838245164,-150.0,0.00017452,2]
[400821601,1767838245175,-833.4,0.00017453,2]
[400821628,1767838245415,-300.0,0.00017459,2]
[400821631,1767838245437,-500.0,0.0001746,2]
[400821633,1767838245446,-300.0,0.00017466,2]
[400821635,1767838245455,-150.0,0.00017467,2]
[400821637,1767838245465,-300.0,0.00017467,2]
[400821639,1767838245475,-300.0,0.00017471,2]
[400821642,1767838245484,-300.0,0.00017479,2]
[400821644,1767838245493,-300.0,0.0001748,2]
[400821646,1767838245503,-150.0,0.00017493,2]
[400821648,1767838245512,-2000.0,0.000175,2]
[400821651,1767838245524,-300.0,0.00017516,2]
[400821653,1767838245534,-833.4,0.00017521,2]
[400821655,1767838245543,-300.0,0.00017523,2]
[400821657,1767838245552,-300.0,0.00017527,2]
[400821659,1767838245563,-300.0,0.00017532,2]
[400821661,1767838245572,-150.0,0.00017533,2]
[400821663,1767838245582,-300.0,0.00017534,2]
[400821665,1767838245592,-241.73307518,0.00017534,2]
[400821667,1767838245602,-1362.12,0.00017538,2]
[400821669,1767838245611,-282.7296497,0.00017539,2]
[400821671,1767838245621,-300.0,0.00017548,2]
[400821673,1767838245630,-300.0,0.00017554,2]
[400821675,1767838245640,-300.0,0.00017556,2]
[400821677,1767838245650,-300.0,0.00017561,2]
[400821679,1767838245659,-621.371,0.00017564,2]
[400821681,1767838245669,-3467.0,0.00017564,2]
[400821683,1767838245678,-1405.0,0.00017564,2]
[400821685,1767838245687,-318.07,0.00017565,2]
[400821687,1767838245697,-300.0,0.00017573,2]
[400821689,1767838245706,-300.0,0.00017573,2]
[400821691,1767838245715,-1348.019,0.00017574,2]
[400821693,1767838245725,-505.0,0.00017574,2]
[400821695,1767838245734,-923.791,0.00017574,2]
[400821697,1767838245744,-1209.372,0.00017574,2]
[400821699,1767838245753,-567.272,0.00017574,2]
[400821700,1767838245763,-2436.0,0.00017574,2]
[400821702,1767838245772,-4819.0,0.00017574,2]
[400821704,1767838245782,-6799.0750253,0.00017574,2]
[400821706,1767838245792,-300.0,0.0001758,2]
[400821709,1767838245802,-833.4,0.0001759,2]
[400821710,1767838245811,-318.07,0.00017596,2]
[400821712,1767838245820,-150.0,0.000176,2]
[400821714,1767838245830,-1000.0,0.000176,2]
[400821716,1767838245839,-300.0,0.00017604,2]
[400821718,1767838245849,-466.04,0.00017609,2]
[400821720,1767838245860,-300.0,0.00017624,2]
[400821722,1767838245870,-318.07,0.00017627,2]
[400821724,1767838245880,-300.0,0.00017634,2]
[400821726,1767838245892,-163.7104368,0.00017634,2]
[400821728,1767838245902,-151.0,0.00017634,2]
[400821730,1767838245912,-184.55624416,0.00017636,2]
[400821732,1767838245922,-500.0,0.00017636,2]
[400821734,1767838245932,-410.25491874,0.00017636,2]
[400821736,1767838245941,-414011.8650587,0.00017637,2]
[400821738,1767838245951,-285.15739,0.00017639,2]
[400821740,1767838245960,-5309.74765664,0.0001764,2]
[400821743,1767838245971,-300.0,0.00017646,2]
[400821745,1767838245980,-300.0,0.00017658,2]
[400821746,1767838245989,-833.4,0.00017658,2]
[400821749,1767838245999,-300.0,0.0001766,2]
[400821750,1767838246009,-762.0,0.00017663,2]
[400821752,1767838246019,-150.0,0.00017667,2]
[400821754,1767838246029,-500.0,0.00017671,2]
[400821757,1767838246039,-300.0,0.00017677,2]
[400821758,1767838246048,-162.0,0.0001768,2]
[400821760,1767838246058,-833.0,0.0001768,2]
[400821763,1767838246068,-300.0,0.00017685,2]
[400821765,1767838246078,-1000.0,0.00017696,2]
[400821767,1767838246088,-300.0,0.00017697,2]
[400821769,1767838246097,-25000.0,0.00017698,3]
[400821771,1767838246106,-4301.285688,0.000177,2]
[400821773,1767838246119,-3603.13674707,0.000177,2]
[400821775,1767838246134,-1000.0,0.00017704,2]
[400821777,1767838246143,-787.62614361,0.00017705,2]
[400821779,1767838246153,-300.0,0.00017714,2]
[400821782,1767838246162,-1000.0,0.00017716,2]
[400821784,1767838246172,-617.40005154,0.00017717,2]
[400821786,1767838246181,-1000.0,0.00017721,2]
[400821788,1767838246190,-1000.0,0.00017723,2]
[400821790,1767838246199,-833.4,0.00017727,2]
[400821792,1767838246210,-1000.0,0.00017728,2]
[400821794,1767838246225,-1000.0,0.00017729,2]
[400821796,1767838246243,-150.0,0.00017733,2]
[400821798,1767838246253,-1000.0,0.00017737,2]
[400821799,1767838246270,-300.0,0.00017737,2]
[400821801,1767838246290,-452.4113552,0.00017739,2]
[400821803,1767838246307,-150.0,0.00017741,2]
[400821805,1767838246316,-150.0,0.00017746,2]
[400821807,1767838246325,-1000.0,0.0001775,2]
[400821809,1767838246336,-25000.0,0.00017759,3]
[400821811,1767838246346,-1000.0,0.00017763,2]
[400821813,1767838246356,-1059.94309744,0.00017764,2]
[400821815,1767838246365,-300.0,0.00017765,2]
[400821817,1767838246375,-150.0,0.00017765,2]
[400821819,1767838246384,-25000.0,0.00017768,3]
[400821821,1767838246394,-300.0,0.00017776,2]
[400821823,1767838246403,-25000.0,0.00017777,3]
[400821825,1767838246413,-1000.0,0.00017779,2]
[400821827,1767838246422,-1000.0,0.0001778,2]
[400821829,1767838246432,-300.0,0.00017783,2]
[400821831,1767838246441,-25000.0,0.00017786,3]
[400821833,1767838246450,-500.0,0.00017794,2]
[400821835,1767838246459,-25000.0,0.00017794,3]
[400821837,1767838246468,-833.4,0.00017795,2]
[400821839,1767838246479,-150.0,0.000178,2]
[400821842,1767838246489,-1000.0,0.000178,2]
[400821843,1767838246499,-25000.0,0.00017803,3]
[400821845,1767838246508,-4122.0,0.00017808,2]
[400821847,1767838246520,-504.0,0.00017808,3]
[400821849,1767838246530,-762.0,0.00017812,2]
[400821851,1767838246539,-10671.28926471,0.00017812,3]
[400821936,1767838247357,-14328.71073529,0.00017812,3]
[400821938,1767838247367,-1000.0,0.00017812,2]
[400821940,1767838247376,-1362.12,0.00017812,2]
[400821942,1767838247386,-3008.63308647,0.00017812,2]
[400821944,1767838247397,-3000.0,0.00017812,2]
[400821946,1767838247405,-3000.0,0.00017812,2]
[400821948,1767838247414,-7663.47995,0.0001782,2]
[400821950,1767838247423,-7663.47995,0.0001782,2]
[400821952,1767838247432,-25000.0,0.00017821,3]
[400821954,1767838247441,-300.0,0.00017829,2]
[400821956,1767838247450,-25000.0,0.0001783,3]
[400821958,1767838247459,-298.06900978,0.0001783,2]
[400821960,1767838247468,-1000.0,0.0001783,2]
[400821962,1767838247477,-7663.47995,0.0001783,2]
[400821964,1767838247486,-300.0,0.00017834,2]
[400821966,1767838247495,-25000.0,0.00017838,3]
[400821968,1767838247504,-1000.0,0.00017842,2]
[400821970,1767838247513,-1000.0,0.00017842,2]
[400821972,1767838247526,-25000.0,0.00017847,3]
[400821974,1767838247536,-300.0,0.00017848,2]
[400821976,1767838247545,-25000.0,0.00017856,3]
[400821978,1767838247554,-300.0,0.0001786,2]
[400821980,1767838247563,-7663.47995,0.0001786,2]
[400821982,1767838247572,-300.0,0.00017863,2]
[400821984,1767838247581,-833.4,0.00017863,2]
[400821986,1767838247590,-25000.0,0.00017865,3]
[400821988,1767838247600,-1000.0,0.00017866,2]
[400821990,1767838247609,-150.0,0.00017867,2]
[400821992,1767838247618,-177.4888516,0.00017873,3]
[400821993,1767838247627,-500.0,0.00017873,2]
[400821995,1767838247637,-300.0,0.00017873,2]
[400821997,1767838247646,-300.0,0.00017873,2]
[400821999,1767838247655,-25000.0,0.00017874,3]
[400822001,1767838247664,-7663.47995,0.0001788,2]
[400822003,1767838247673,-157.19112422,0.00017881,2]
[400822005,1767838247682,-25000.0,0.00017882,3]
[400822007,1767838247691,-25000.0,0.00017891,3]
[400822009,1767838247700,-1000.0,0.00017892,2]
[400822011,1767838247710,-1000.0,0.00017893,2]
[400822013,1767838247719,-300.0,0.00017899,2]
[400822015,1767838247728,-1068.29795687,0.000179,2]
[400822017,1767838247737,-2585.3429,0.000179,2]
[400822019,1767838247746,-1000.0,0.000179,2]
[400822021,1767838247755,-10000.0,0.000179,2]
[400822022,1767838247763,-19596.49787464,0.000179,3]
[400822023,1767838247772,-25000.0,0.000179,3]
[400822024,1767838247781,-637.69822592,0.000179,2]
[400822025,1767838247789,-17133.44498831,0.000179,2]
[400822026,1767838247799,-16967.26690224,0.000179,2]
[400822027,1767838247807,-923.06403135,0.000179,2]
[400822028,1767838247816,-826.7971212,0.000179,3]
[400822029,1767838247825,-846.37819096,0.000179,2]
[400822030,1767838247834,-1000.0,0.00017908,2]
[400822031,1767838247843,-7663.47996,0.0001791,2]
[400822032,1767838247852,-300.0,0.00017913,2]
[400822033,1767838247861,-300.0,0.00017915,2]
[400822034,1767838247869,-300.0,0.00017919,2]
[400822035,1767838247878,-1000.0,0.00017927,2]
[400822036,1767838247887,-833.4,0.00017932,2]
[400822037,1767838247896,-150.0,0.00017933,2]
[400822038,1767838247905,-300.0,0.00017938,2]
[400822039,1767838247915,-300.0,0.00017939,2]
[400822040,1767838247924,-1000.0,0.00017944,2]
[400822042,1767838247933,-1000.0,0.00017947,2]
[400822043,1767838247941,-762.0,0.00017959,2]
[400822045,1767838247951,-238.0,0.00017969,2]
[400822047,1767838247960,-500.0,0.0001797,2]
[400822049,1767838247968,-500.0,0.0001797,2]
[400822051,1767838247977,-1000.0,0.0001797,2]
[400822053,1767838247986,-500.0,0.0001797,2]
[400822055,1767838247995,-1000.0,0.0001797,2]
[400822057,1767838248006,-500.0,0.0001797,2]
[400822059,1767838248015,-1000.0,0.0001797,2]
[400822061,1767838248024,-984.41347442,0.0001797,2]
[400822063,1767838248033,-1000.0,0.0001797,2]
[400822065,1767838248042,-1000.0,0.0001797,2]
[400822068,1767838248055,-1000.0,0.0001797,2]
[400822070,1767838248064,-1000.0,0.0001797,2]
[400822072,1767838248073,-1000.0,0.0001797,2]
[400822074,1767838248081,-1000.0,0.0001797,2]
[400822076,1767838248091,-1246.54474908,0.0001797,2]
[400822078,1767838248100,-150.0,0.00017973,2]
[400822080,1767838248109,-150.0,0.00017973,2]
[400822082,1767838248117,-558.19,0.00017979,2]
[400822084,1767838248126,-500.0,0.0001798,2]
[400822085,1767838248135,-500.0,0.00017982,2]
[400822088,1767838248145,-300.0,0.0001799,2]
[400822089,1767838248154,-1186.44134713,0.0001799,2]
[400822091,1767838248164,-1186.44134713,0.0001799,2]
[400822093,1767838248173,-334.5472959,0.0001799,2]
[400822096,1767838248185,-642.94,0.0001799,2]
[400822098,1767838248193,-225.8709601,0.00017997,2]
[400822100,1767838248203,-2300.2821095,0.00017997,2]